Cogmind - Beta 10.2 @@@ ROGUE MODE // 2021.01.11 @ 15:34:38 Player: blelm Result: Self-destructed Performance ------------- Evolutions (7) 3500 Regions Visited (28) 5600 Robots Destroyed (461) 2305 Value Destroyed (19677) 19677 Prototype IDs (41) 820 Alien Tech Used (0) 0 Bonus (3862) 3862 TOTAL SCORE: 35764 Bonus ------- High Alert Combat Kills 2738 Follower Combat Kills 367 Network Hubs Disabled 400 Met Data Miner 300 Met Imprinter 300 Met Warlord at Base 500 MAIN.C Attacked Warlord 500 A7 Reached Mainframe 300 Friendly Fire -1543 Cogmind --------- Core Integrity 1179/1300 Matter 300/300 Energy 340/340 System Corruption 10% Temperature Cool (2) Movement Core (2450) Ox48 Location -3/Research Parts ------- > --- POWER (2) -------- Particle Reactor > --- PROPULSION (4) --- (None) > --- UTILITY (13) ----- High-capacity Storage Unit High-capacity Storage Unit High-capacity Storage Unit High-capacity Storage Unit Experimental Signal Interpreter Advanced Armor Integrity Analyzer Advanced Transmission Jammer System Mapper > --- WEAPON (2) ------- (None) > --- INVENTORY (36) --- Faulty Compact Particle Reactor Improved Heavy Treads Improved Heavy Treads Advanced Heavy Treads Improved Heavy Siege Treads Experimental Energy Well (1000) Experimental Energy Well (1000) Advanced Terrain Scanner Centrium Medium Armor Plating Centrium Medium Armor Plating Centrium Medium Armor Plating Centrium Medium Armor Plating EM Shield Antimissile System Advanced Component Analysis Suite Makeshift System Restoration Module Long-range Tractor Beam Advanced Variable Charge Gun Long-range Proton Cannon Neutron Cannon Nova Cannon Railgun Railgun Improved KE Penetrator Improved KE Penetrator Helical Railgun Heavy Autocannon Proton Missile Launcher Long-range Missile Launcher Advanced Remote Datajack Peak State ------------ > --- POWER ------------ Antimatter Reactor Antimatter Reactor > --- PROPULSION ------- Centrium Heavy Treads Centrium Heavy Treads > --- UTILITY ---------- Advanced Cooling System High-capacity Storage Unit High-capacity Storage Unit High-capacity Storage Unit High-capacity Storage Unit Spectral Analyzer Experimental Signal Interpreter Advanced Armor Integrity Analyzer Advanced Transmission Jammer Layered Heavy Armor Plating Improved Force Field System Mapper > --- WEAPON ----------- Heavy Autocannon > --- INVENTORY -------- Antimatter Reactor Improved Heavy Treads Improved Heavy Treads Heavy Siege Treads Experimental Energy Well Experimental Energy Well YI-UF0's Bottomless Matter Pit Makeshift Terrain Scanner Makeshift Salvage Targeting Computer Centrium Medium Armor Plating Centrium Medium Armor Plating Centrium Medium Armor Plating Centrium Medium Armor Plating Damper Plating EM Shield Makeshift System Restoration Module Long-range Tractor Beam Advanced Variable Charge Gun Long-range Proton Cannon Long-range Proton Cannon HERF Cannon Neutron Cannon Railgun Improved KE Penetrator Improved KE Penetrator Helical Railgun Proton Missile Launcher Rocket Array Long-range Missile Launcher [Rating: 155] Favorites ----------- Power Antimatter Reactor Engine Reinforced Deuterium Engine Power Core Micro Fission Core Reactor Antimatter Reactor Propulsion Biometal Medium Treads Treads Biometal Medium Treads Leg Aluminum Leg Wheel Compact Wheel Hover Unit Antigrav Array Utility High-capacity Storage Unit Device Advanced Cooling System Storage High-capacity Storage Unit Processor Advanced Armor Integrity Analyzer Hackware System Mapper Protection Hardened Heavy Armor Plating Weapon Flak Gun Energy Gun Precision Shock Rifle Energy Cannon HERF Cannon Ballistic Gun Flak Gun Ballistic Cannon Heavy Autocannon Launcher Proton Missile Launcher Special Weapon Mining Laser Impact Weapon Great Maul Slashing Weapon Scythe Build | -11 -10 -10 -10 -9 -8 -7 -7 -7 -7 -6 -6 -6 -6 -6 -5 -5 -5 -5 -5 -5 -5 -4 -4 -4 -4 -4 -4 -3 ------- Run | Scr Mat Min Exi Min Mat Fac Low Low Dat Pro Fac Low Low Zio Pro Fac Was Fac Upp Upp War Pro Fac Ext Cet Arc Hub Res Slots Evolved 14 | . . . . . 4 2 . . . . 2 . . . . 2 . . . . . . 2 . . . . 2 Power 1 | . . . . . . . . . . . . . . . . . . . . . . . 1 . . . . . Propulsion 2 | . . . . . 1 . . . . . 1 . . . . . . . . . . . . . . . . . Utility 11 | . . . . . 3 2 . . . . 1 . . . . 2 . . . . . . 1 . . . . 2 Weapon . | . . . . . . . . . . . . . . . . . . . . . . . . . . . . . Parts Attached 647 | 4 7 14 3 13 32 63 22 5 . 4 71 6 3 32 2 33 14 58 13 10 9 8 42 39 12 4 54 70 Power 19 | . . 1 . 1 1 1 1 . . . 4 . . 2 . . 1 . 1 . . . 1 . . . 3 2 Engine 6 | . . 1 . 1 1 1 1 . . . 1 . . . . . . . . . . . . . . . . . Core 1 | . . . . . . . . . . . . . . . . . . . . . . . . . . . 1 . Reactor 12 | . . . . . . . . . . . 3 . . 2 . . 1 . 1 . . . 1 . . . 2 2 Propulsion 64 | 3 . 1 . 2 5 5 4 . . . 17 . . 6 . 1 5 3 . . 1 1 4 3 2 . . 1 Treads 57 | 2 . 1 . 1 5 4 3 . . . 15 . . 6 . 1 4 3 . . 1 1 4 3 2 . . 1 Leg . | . . . . . . . . . . . . . . . . . . . . . . . . . . . . . Wheel 6 | 1 . . . 1 . 1 1 . . . 2 . . . . . . . . . . . . . . . . . Hover 1 | . . . . . . . . . . . . . . . . . 1 . . . . . . . . . . . Flight . | . . . . . . . . . . . . . . . . . . . . . . . . . . . . . Utility 297 | 1 2 . 3 . 6 23 6 . . . 23 3 1 14 1 13 6 27 9 7 7 2 31 28 8 2 35 39 Device 175 | . . . . . 1 11 2 . . . 9 1 1 1 1 8 5 21 6 7 5 2 20 23 4 2 23 22 Storage 25 | 1 2 . 3 . 1 . 3 . . . 3 . . 3 . . . 1 . . 1 . 1 2 . . 2 2 Processor 17 | . . . . . . 4 . . . . 3 . . 4 . 2 . . 1 . 1 . . . . . . 2 Hackware 1 | . . . . . . . . . . . . . . . . . . . . . . . 1 . . . . . Protection 79 | . . . . . 4 8 1 . . . 8 2 . 6 . 3 1 5 2 . . . 9 3 4 . 10 13 Artifact . | . . . . . . . . . . . . . . . . . . . . . . . . . . . . . Weapon 267 | . 5 12 . 10 20 34 11 5 . 4 27 3 2 10 1 19 2 28 3 3 1 5 6 8 2 2 16 28 Energy Gun 39 | . . . . . . 3 7 2 . 2 8 . . 1 . 5 . 11 . . . . . . . . . . Energy Cannon 64 | . . . . . . . . . . . 3 . 1 . . 6 1 10 1 2 . 2 4 5 . 2 11 16 Ballistic Gun 68 | . 4 4 . 4 10 7 . . . . 13 . . 1 . 5 1 6 1 . . 1 . . 2 . 3 6 Ballistic Cannon 20 | . . . . . . 8 . . . . 1 . . . . 1 . 1 . . 1 1 2 1 . . 2 2 Launcher 53 | . . 6 . 2 8 5 3 3 . 2 2 3 1 6 1 2 . . 1 1 . 1 . 2 . . . 4 Special Weapon 9 | . 1 2 . 4 2 . . . . . . . . . . . . . . . . . . . . . . . Impact Weapon 2 | . . . . . . . . . . . . . . 2 . . . . . . . . . . . . . . Slashing Weapon 12 | . . . . . . 11 1 . . . . . . . . . . . . . . . . . . . . . Piercing Weapon . | . . . . . . . . . . . . . . . . . . . . . . . . . . . . . Special Melee Weapon . | . . . . . . . . . . . . . . . . . . . . . . . . . . . . . Unidentified Prototypes 29 | . . 1 1 . 1 2 1 . . . 2 . . 6 . . . . 1 . 2 1 5 1 3 . . 2 Parts Lost 68 | . . 4 . 4 1 10 4 1 . . 22 . . . . 1 . 4 3 . . 1 1 . . . . 12 Power 7 | . . . . 1 . . 1 . . . 2 . . . . . . . 1 . . . . . . . . 2 Propulsion 17 | . . 1 . 2 . 3 1 . . . 6 . . . . . . . . . . 1 1 . . . . 2 Utility 21 | . . . . . . 5 . . . . 7 . . . . 1 . 2 1 . . . . . . . . 5 Weapon 23 | . . 3 . 1 1 2 2 1 . . 7 . . . . . . 2 1 . . . . . . . . 3 Highest Loss Streak 8 | . . 2 . 2 1 4 2 1 . . 5 . . . . 1 . 3 2 . . 1 1 . . . . 8 Average Slot Usage (%) 86 | . 99 98 90 84 89 86 93 100 100 100 93 99 95 78 93 92 93 82 87 88 87 85 78 83 81 78 83 83 Engine 3 | . 14 14 14 14 9 7 7 7 7 7 4 . . . . . . . . . . . . . . . . . Reactor 3 | . . . . . . . . . . . 1 6 6 3 6 5 5 5 4 5 5 5 5 5 5 5 7 8 Treads 15 | . 14 12 14 13 22 14 19 23 23 23 17 26 26 21 26 17 16 17 17 17 17 16 15 15 11 10 10 8 Wheel 2 | . 14 14 14 13 4 3 2 . . . 3 . . . . . . . . . . . . . . . . . Device 8 | . . . . . 8 6 7 7 7 7 8 6 5 1 6 13 22 5 14 17 16 11 12 9 9 10 9 17 Storage 18 | . 28 28 18 14 9 7 12 23 23 23 20 20 20 17 20 17 17 17 17 17 17 23 21 21 21 21 21 19 Processor 10 | . . . . . . 14 15 15 15 15 10 13 13 13 13 16 17 16 11 11 11 11 10 10 10 10 10 9 Hackware 1 | . . . . . . . . . . . . . . . . . . . . . . . . 5 5 5 5 4 Protection 6 | . . . . . 17 14 12 7 7 7 11 12 8 10 6 6 . 5 7 5 5 5 5 5 7 5 6 4 Energy Gun 1 | . 2 . . . . . 13 14 15 14 2 . . . . 1 . 4 6 . . . . . . . . . Energy Cannon 3 | . . . . . . . . . . . 1 . 1 . . 4 . 2 . 2 4 6 3 8 3 9 5 5 Ballistic Gun 4 | . 24 14 14 23 16 7 . . . . 7 6 . . . 1 10 2 1 5 4 . . . 2 . 1 2 Launcher 1 | . . 5 14 3 1 . 1 . . . . 6 11 4 12 2 . . 2 2 . . . . 3 . . . Naked Turns . | . . . . . . . . . . . . . . . . . . . . . . . . . . . . . Heaviest Build 250 | 15 39 50 95 96 111 132 131 125 125 125 147 140 149 157 159 160 166 176 153 150 198 198 250 219 222 207 219 236 Greatest Support 160 | 40 20 20 20 20 60 63 71 71 71 71 140 140 140 140 140 140 140 140 140 140 140 132 140 140 160 160 160 160 Greatest Overweight (x) 68 | . 2 3 4 5 6 5 12 1 1 1 5 . 1 40 1 1 1 1 1 1 1 1 1 1 1 68 1 1 Average Overweight (x) 2 | . . 2 3 4 1 2 1 1 1 1 2 . . 1 1 . . 1 1 1 1 1 1 1 1 48 1 1 Largest Inventory Capacity 44 | 8 16 16 24 24 44 24 40 26 26 26 28 28 28 28 28 28 28 28 28 28 36 36 36 36 36 36 36 36 Average Capacity 28 | 7 10 16 20 24 24 24 24 26 26 26 27 28 28 24 28 28 28 28 28 28 28 36 36 36 36 36 36 36 Most Carried 36 | 6 11 15 17 22 24 24 26 26 25 26 28 28 28 28 28 28 28 28 28 24 33 36 36 36 36 36 36 36 Average Carried 27 | 5 8 14 12 19 22 23 22 25 25 25 23 28 27 23 27 27 27 27 25 23 26 34 35 35 35 36 35 34 Final Capacity 36 | 8 16 16 24 24 24 24 26 26 26 26 28 28 28 28 28 28 28 28 28 28 36 36 36 36 36 36 36 36 Final Carried 36 | 6 11 12 17 21 24 23 26 25 25 26 28 28 28 28 28 27 28 28 23 24 33 35 36 36 36 36 36 35 Class Distribution -------------------- 81% | Hauler-Mutant 6% | Mutant 4% | Hauler-Skirmisher 3% | Scavenger-Mutant 3% | Hauler-Assassin Dominant Class ---------------- Mutant | -10/Materials Mutant | -10/Mines Hauler-Mutant | -10/Exiles Hauler-Mutant | -9/Mines Hauler-Mutant | -8/Materials Hauler-Assassin | -7/Factory Hauler-Mutant | -7/Lower Caves Hauler-Mutant | -7/Lower Caves Hauler-Mutant | -7/Data Miner Hauler-Mutant | -6/Proximity Caves Hauler-Mutant | -6/Factory Hauler-Mutant | -6/Lower Caves Hauler-Mutant | -6/Lower Caves Hauler-Mutant | -6/Zion Hauler-Mutant | -5/Proximity Caves Hauler-Mutant | -5/Factory Hauler-Skirmisher | -5/Waste Hauler-Mutant | -5/Factory Hauler-Mutant | -5/Upper Caves Hauler-Mutant | -5/Upper Caves Hauler-Mutant | -5/Warlord Hauler-Mutant | -4/Proximity Caves Hauler-Mutant | -4/Factory Hauler-Mutant | -4/Extension Hauler-Mutant | -4/Cetus Hauler-Mutant | -4/Archives Hauler-Mutant | -4/Hub_04(d) Hauler-Mutant | -3/Research Resources | -11 -10 -10 -10 -9 -8 -7 -7 -7 -7 -6 -6 -6 -6 -6 -5 -5 -5 -5 -5 -5 -5 -4 -4 -4 -4 -4 -4 -3 ----------- Run | Scr Mat Min Exi Min Mat Fac Low Low Dat Pro Fac Low Low Zio Pro Fac Was Fac Upp Upp War Pro Fac Ext Cet Arc Hub Res Matter Collected 17758 | 226 198 503 . 1930 623 1643 804 135 . 113 1608 354 110 280 443 441 399 1029 238 336 351 113 1236 831 225 30 1150 2409 Remotely 1972 | . . . . . . . . . . . . . . . . . . 336 . . 30 . 336 402 90 . 122 656 Salvage Created 23371 | 85 275 461 . 377 2174 1407 1105 482 . 114 2428 370 170 . 911 1576 1480 2276 292 136 . 233 768 1094 351 413 1948 2445 Parts 1000 | 8 13 34 . 22 99 80 32 9 . 5 106 13 11 . 36 56 27 95 20 3 . 13 39 58 21 12 66 122 Haulers Intercepted 13 | . 2 . . . 2 2 . . . . . . . . . 1 . 4 . . . . . . . . 1 1 Recyclers Shooed 27 | . 1 . . . 1 2 . . . . 11 . . . . 4 . 2 . . . . 1 . . . 1 4 Parts Field Recycled . | . . . . . . . . . . . . . . . . . . . . . . . . . . . . . Retrieved Matter . | . . . . . . . . . . . . . . . . . . . . . . . . . . . . . Parts Self-Destructed 103 | . . . . . . . 11 6 . 5 . 3 4 . 11 . . . 8 1 50 4 . . . . . . Prevented 51 | . . . . . . . 14 4 . . . 8 6 . 10 . . . . . 2 7 . . . . . . Kills | -11 -10 -10 -10 -9 -8 -7 -7 -7 -7 -6 -6 -6 -6 -6 -5 -5 -5 -5 -5 -5 -5 -4 -4 -4 -4 -4 -4 -3 ------- Run | Scr Mat Min Exi Min Mat Fac Low Low Dat Pro Fac Low Low Zio Pro Fac Was Fac Upp Upp War Pro Fac Ext Cet Arc Hub Res Combat Hostiles Destroyed 332 | . 3 12 . 13 31 25 13 14 . 5 23 6 6 . 15 14 6 30 19 4 . 7 11 11 5 4 21 34 Guns 98 | . 3 2 . 8 6 11 3 2 . 1 15 1 . . . 3 5 22 . . . . . . 2 . 2 12 Cannons 47 | . . . . . . 7 . . . . 4 . . . . 2 . 1 . . . . 9 5 . 1 13 5 AOE 145 | . . 10 . 5 22 7 8 12 . 4 3 3 5 . 13 5 . 2 19 4 . 5 . 1 . . 2 15 Classes Destroyed 22 | 2 3 3 . 2 5 1 2 . . . . 1 . . 1 1 1 . . . . . . . . . . . Worker 31 | . . 1 . . 6 3 . . . . 3 . . . . 1 . 2 . . . . 3 . . . 9 3 Builder 26 | . . 1 . . 1 4 . . . . 2 . . . . . 1 1 . . . . 2 1 . . 4 9 Tunneler 7 | 1 . 2 . 1 . . . . . . . . . . . . . 1 . . . . 1 . . . . 1 Hauler 13 | . 2 . . . 2 2 . . . . . . . . . 1 . 4 . . . . . . . . 1 1 Recycler 32 | 1 . 2 . . 3 3 . . . . 9 . . . . 5 . 1 . . . . 2 . . . 2 4 Mechanic 1 | . . . . . 1 . . . . . . . . . . . . . . . . . . . . . . . Operator 1 | . . . . . . . . . . . . . . . . 1 . . . . . . . . . . . . Watcher 18 | . 1 . . . 2 1 . . . . 4 . . . . 3 . . . . . . 1 2 . . 3 1 Swarmer 50 | . . 6 . 2 . . 3 2 . 1 . . 4 . . 4 . 4 14 . . 5 . . . . . 5 Grunt 121 | . 3 6 . 7 20 11 2 5 . 4 6 5 . . 8 2 . 14 5 4 . . . 3 . . 8 8 Brawler 16 | . . . . . 2 2 4 5 . . . . . . 1 . . . . . . . . . . . . 2 Duelist 9 | . . . . . 1 1 1 2 . . . . . . 3 . . 1 . . . . . . . . . . Protector 3 | . . . . . 1 2 . . . . . . . . . . . . . . . . . . . . . . Sentry 38 | . . . . 2 4 4 2 1 . . 6 . . . 2 1 . 1 . . . . 2 2 . 4 4 3 Hunter 28 | . . . . . 3 2 . . . . 3 . 2 . 1 5 1 1 . . . 2 2 4 . . . 2 Programmer 53 | . . . . . . 3 . . . . 8 . . . . 2 . 8 . . . . 7 . 2 . 9 14 Behemoth 4 | . . . . . . . 1 . . . . . . . . . . 1 . . . . . 2 . . . . Compactor 5 | . . . . . . . . . . . . . . . . . 5 . . . . . . . . . . . Cetus Guard 3 | . . . . . . . . . . . . . . . . . . . . . . . . . 3 . . . Decomposer 1 | . . . . . . . 1 . . . . . . . . . . . . . . . . . . . . . Packrat 5 | . . . . . . . 5 . . . . . . . . . . . . . . . . . . . . . Samaritan 1 | . . . . . . . 1 . . . . . . . . . . . . . . . . . . . . . Tinkerer 1 | . . . . . . . . . . . . . . . 1 . . . . . . . . . . . . . Thief 1 | . . . . . . . . . . . . 1 . . . . . . . . . . . . . . . . Assembled 2 | . . . . 2 . . . . . . . . . . . . . . . . . . . . . . . . Best Kill Streak 16 | 1 2 5 . 4 12 9 9 10 . 4 5 3 4 . 9 7 2 5 5 4 . 5 5 5 3 4 15 16 Combat Bots Only 10 | . 2 3 . 3 9 5 9 10 . 4 3 3 4 . 9 4 1 5 5 4 . 5 2 3 3 4 5 8 Max Kills in Single Turn 12 | 1 1 3 . 3 5 3 4 7 . 3 2 3 3 . 2 2 1 2 5 4 . 5 1 1 1 1 12 4 Gunslinging . | . . . . . . . . . . . . . . . . . . . . . . . . . . . . . Exploded 7 | . . 3 . 2 3 2 4 7 . 3 1 3 3 . 2 2 . 2 5 4 . 5 . 1 . . 1 3 Melee . | . . . . . . . . . . . . . . . . . . . . . . . . . . . . . Uniques/NPCs Destroyed 1 | . . 1 . . . . . . . . . . . . . . . . . . . . . . . . . . YI-UF0 (-10/Mines) Combat | -11 -10 -10 -10 -9 -8 -7 -7 -7 -7 -6 -6 -6 -6 -6 -5 -5 -5 -5 -5 -5 -5 -4 -4 -4 -4 -4 -4 -3 -------- Run | Scr Mat Min Exi Min Mat Fac Low Low Dat Pro Fac Low Low Zio Pro Fac Was Fac Upp Upp War Pro Fac Ext Cet Arc Hub Res Damage Taken 22705 | . 415 371 . 645 795 2650 947 211 . 198 3312 171 160 . 451 930 158 3216 421 118 106 290 663 1874 198 224 996 3185 Core 1308 | . 66 51 . 87 17 126 96 . . . 298 6 10 . 42 133 . 116 12 14 . 24 2 84 1 . 2 121 Absorbed by Shields 1701 | . . . . . . . . . . . . . . . . . . 60 21 44 . . 77 508 107 . 156 728 Reduced by Siege Mode 471 | . . . . . . . . . . . . . . . . 30 6 70 6 . . . 5 36 3 . 75 240 Core Remaining (%) 71 | 100 . . . 18 96 . . . . 68 . . . . 58 . . . . . . 70 . . . . 92 . Volleys Fired 1143 | 2 39 35 . 40 51 91 35 10 . 6 170 12 17 1 24 52 28 126 11 8 10 6 59 34 14 11 100 151 Largest 2 | 2 2 2 . 2 2 2 2 2 . 2 2 2 1 1 1 2 2 2 1 2 1 2 2 2 2 2 2 2 Hottest 176 | 80 100 120 . 100 100 110 110 110 . 110 145 78 90 50 43 165 75 155 90 123 90 169 171 176 81 169 171 171 Shots Fired 1767 | 4 73 57 . 61 69 175 66 15 . 7 288 24 17 1 24 77 51 207 11 10 10 10 70 57 19 22 134 208 Gun 985 | 4 68 38 . 42 36 119 63 11 . 2 223 14 . 1 . 29 46 163 . 2 . . . . 10 . 23 91 Cannon 583 | . . . . . . 39 . . . . 61 . 9 . . 37 5 44 3 3 10 9 70 52 4 22 111 104 Launcher 175 | . . 15 . 5 32 17 3 4 . 5 4 10 8 . 24 11 . . 8 5 . 1 . 5 5 . . 13 Special 24 | . 5 4 . 14 1 . . . . . . . . . . . . . . . . . . . . . . . Kinetic 916 | . 68 38 . 42 36 142 . . . . 192 14 . . . 10 46 78 . 2 5 1 48 3 10 . 66 115 Thermal 199 | . 5 4 . 14 1 . . . . . 42 . 9 . . 16 . 20 3 3 5 . 5 1 . . 24 47 Explosive 91 | . . 15 . 5 . 13 3 4 . 5 4 . 4 . 6 5 . . 8 5 . 1 . . . . . 13 Electromagnetic 561 | 4 . . . . 32 20 63 11 . 2 50 10 4 1 18 46 5 109 . . . 8 17 53 9 22 44 33 Robot Hit Streak 38 | 1 11 7 . 13 13 22 35 21 . 12 12 8 9 . 10 22 38 19 7 12 . 3 15 18 22 14 23 27 Robot Miss Streak 10 | 1 3 4 . 4 4 10 3 1 . 2 9 5 . . 2 3 3 3 8 1 1 2 2 2 1 2 3 6 Penetration Max 1 | . . . . . . . . . . . . . . . . . . 1 . . . . . . . . 1 1 Secondary Targets 6 | . . . . 1 . 1 1 . . . . . . . . . . 1 . . . . . . . . . 2 Max Gunslinging Chain 1 | . . . . 1 . 1 1 . . . . . . . . . . 1 . . . . . . . . . 1 Shots Hit Robots 1249 | 2 56 27 . 36 50 149 58 14 . 3 225 21 1 . 18 43 48 156 6 2 . 8 42 47 12 19 86 120 Core Hits 1261 | 4 12 37 . 31 77 154 55 52 . 20 200 19 8 . 33 45 59 82 52 19 . 6 19 27 7 9 58 176 Critical Hits 32 | . . . . 1 . 1 . . . . . . . . . 5 . 10 . . . 1 1 1 2 . 1 9 Critical Kills 8 | . . . . . . . . . . . . . . . . 3 . 1 . . . . . . 1 . 1 2 Critical Parts Destroyed 22 | . . . . 1 . 1 . . . . . . . . . 2 . 9 . . . 1 . . 1 . . 7 Melee Attacks 53 | . . . . . . 28 9 . . . . . . 16 . . . . . . . . . . . . . . Impact 16 | . . . . . . . . . . . . . . 16 . . . . . . . . . . . . . . Slashing 37 | . . . . . . 28 9 . . . . . . . . . . . . . . . . . . . . . Piercing . | . . . . . . . . . . . . . . . . . . . . . . . . . . . . . Sneak Attacks 2 | . . . . . . 2 . . . . . . . . . . . . . . . . . . . . . . Combat Hostiles . | . . . . . . . . . . . . . . . . . . . . . . . . . . . . . Follow-up Attacks . | . . . . . . . . . . . . . . . . . . . . . . . . . . . . . Damage Inflicted 59475 | 98 688 1372 . 953 3912 4198 1898 1687 . 930 5426 1205 539 . 1810 2522 1272 4946 1636 722 77 602 3094 1891 955 627 7106 9309 Guns 17811 | 27 681 272 . 551 545 1633 967 175 . 43 3763 190 . . . 733 1167 3444 . . . . . . 242 . 660 2718 Cannons 13889 | . . . . . . 547 . . . . 524 . . . . 523 105 447 . . 77 311 2895 1397 121 582 4247 2113 Explosions 26613 | 66 . 1068 . 351 3364 1730 924 1512 . 887 885 1015 539 . 1810 1249 . 999 1636 722 . 291 . 494 592 . 2087 4392 Melee 250 | . . . . . . 250 . . . . . . . . . . . . . . . . . . . . . . Ramming 912 | 5 7 32 . 51 3 38 7 . . . 254 . . . . 17 . 56 . . . . 199 . . 45 112 86 Kinetic 21079 | . 681 272 . 551 545 1991 . . . . 3379 190 . . . 265 1167 1705 . . 77 43 2513 135 242 . 3319 4004 Thermal 4095 | 66 . 88 . . 1106 93 110 . . . 637 196 . . 328 38 . 643 . . . . . . 301 . 489 . Explosive 15343 | . . 980 . 351 . 1336 814 1512 . 887 437 . 343 . 713 573 . 356 1636 722 . 291 . . . . . 4392 Electromagnetic 17796 | 27 . . . . 2258 490 967 175 . 43 719 819 196 . 769 1629 105 2186 . . . 268 382 1756 412 582 3186 827 Impact . | . . . . . . . . . . . . . . . . . . . . . . . . . . . . . Slashing 250 | . . . . . . 250 . . . . . . . . . . . . . . . . . . . . . . Piercing . | . . . . . . . . . . . . . . . . . . . . . . . . . . . . . Highest Corruption 16 | . . . . . 3 10 9 . . . 3 . . . . 2 . 3 3 . . . 2 2 . . 8 16 Average Corruption 4 | . . . . . 1 8 5 . . . 1 . . . . 1 . 1 2 . . . 1 1 . . 3 12 Corruption Purged 29 | . . . . . . 1 9 . . . 4 . . . . 2 . . 3 . . . . 2 . . . 8 Effects 279 | . . . . . 10 68 15 . . . 20 . . . . 4 . 15 1 . . . 5 17 . . 13 111 Message Errors 59 | . . . . . 6 9 5 . . . 8 . . . . 1 . 5 . . . . 2 3 . . 1 19 Matter Fused 51 | . . . . . 1 17 2 . . . 2 . . . . . . 4 1 . . . . . . . 5 19 Heat Flow Errors 25 | . . . . . 1 9 1 . . . 2 . . . . . . 2 . . . . . 2 . . 2 6 Energy Discharges 27 | . . . . . . 5 4 . . . 2 . . . . 1 . . . . . . 2 5 . . 2 6 Parts Rejected 2 | . . . . . . 1 . . . . . . . . . . . . . . . . . . . . . 1 Data Loss (minor) 27 | . . . . . 1 7 3 . . . . . . . . 1 . . . . . . . 4 . . 1 10 Data Loss (major) 7 | . . . . . . 2 . . . . . . . . . . . . . . . . . . . . . 5 Misfires 7 | . . . . . . 4 . . . . . . . . . . . . . . . . . . . . . 3 Alerts 1 | . . . . . . . . . . . . . . . . . . . . . . . . . . . . 1 Misdirections 13 | . . . . . . 5 . . . . . . . . . . . . . . . . . . . . . 8 Targeting Errors 53 | . . . . . 1 9 . . . . 5 . . . . 1 . 4 . . . . 1 3 . . 2 27 Weapon Failures 7 | . . . . . . . . . . . 1 . . . . . . . . . . . . . . . . 6 Overload Shots . | . . . . . . . . . . . . . . . . . . . . . . . . . . . . . Overflow Damage 2627 | . . 26 . 3 245 129 51 6 . . 147 29 6 . 40 108 . 153 48 25 17 25 377 77 63 . 614 438 Projectiles 1464 | . . . . . . . . . . . 23 . . . . 23 . . . . 17 20 351 77 17 . 528 408 Explosions 1040 | . . 26 . 3 245 57 49 6 . . 107 29 6 . 40 85 . 147 48 25 . 5 . . 46 . 86 30 Melee 123 | . . . . . . 72 2 . . . 17 . . . . . . 6 . . . . 26 . . . . . Knockbacks 89 | . . . . 1 . 13 . . . . 10 . . . . . . 3 . . 1 1 16 1 . 1 28 14 Impact 6 | . . . . 1 . 1 . . . . . . . . . . . 2 . . . . . . . 1 1 . Kinetic 72 | . . . . . . 9 . . . . 10 . . . . . . 1 . . 1 1 15 1 . . 22 12 Secondary 11 | . . . . . . 3 . . . . . . . . . . . . . . . . 1 . . . 5 2 Self-Inflicted Damage 2515 | . . 116 . 49 245 410 151 64 . 41 107 . 39 . 88 99 . 237 94 31 . . . . . . 196 548 Shots 82 | . . 5 . 2 12 9 6 3 . 1 2 . 2 . 2 4 . 4 5 1 . . . . . . 3 21 Rammed 57 | 4 1 5 . 5 1 2 1 . . . 12 . . . . 1 . 5 . . . . 6 . . 1 7 6 Targets Rammed 65 | 4 1 5 . 5 1 3 1 . . . 14 . . . . 1 . 6 . . . . 9 . . 1 8 6 Kicked . | . . . . . . . . . . . . . . . . . . . . . . . . . . . . . Crushed 8 | . . . . . . 1 . . . . 2 . . . . . . 1 . . . . 3 . . . 1 . Highest Temperature 564 | 18 66 197 . 84 171 346 116 . . . 454 4 64 233 123 152 54 564 . 37 75 108 86 232 58 213 257 249 Average Temperature 71 | 12 15 47 . 20 24 80 29 . . . 123 4 22 121 45 25 29 108 . 37 40 53 38 51 30 84 66 38 Received Heat Transfer 4165 | . 234 96 . 223 207 702 198 36 . 45 687 45 . . 126 72 . 753 36 39 9 . 12 109 . 18 92 426 Effects 24 | . . . . . . 6 . . . . 8 . . . . . . 10 . . . . . . . . . . Shutdowns 5 | . . . . . . 1 . . . . 2 . . . . . . 2 . . . . . . . . . . Energy Bleed 2 | . . . . . . 1 . . . . . . . . . . . 1 . . . . . . . . . . Interference 8 | . . . . . . 3 . . . . 2 . . . . . . 3 . . . . . . . . . . Matter Decay 2 | . . . . . . . . . . . 1 . . . . . . 1 . . . . . . . . . . Short Circuit 2 | . . . . . . . . . . . 2 . . . . . . . . . . . . . . . . . Damage (minor) 2 | . . . . . . 1 . . . . 1 . . . . . . . . . . . . . . . . . Damage (major) 3 | . . . . . . . . . . . . . . . . . . 3 . . . . . . . . . . Siege Activations 72 | . . . . . . . . . . . . . . . . 6 6 16 1 3 . 1 7 5 2 4 11 10 Total Turns 1192 | . . . . . . . . . . . . . . . . 123 43 221 8 29 . 9 108 96 7 16 212 320 Longest Duration 86 | . . . . . . . . . . . . . . . . 69 10 55 8 16 . 9 23 32 5 8 42 86 Robots Corrupted 47 | . . . . . 4 . 2 . . . 1 2 1 . 2 5 1 6 . . . 2 2 5 3 3 6 2 Combat Hostiles 42 | . . . . . 3 . 2 . . . 1 2 1 . 2 4 1 5 . . . 2 2 5 3 3 4 2 Parts Fried 151 | . . . . . 13 3 7 . . . 4 1 3 . 9 19 1 20 . . . 1 9 15 5 13 20 8 Impact Corruptions 10 | . . . . . . . 1 . . . 2 . . . . . . 1 . . . . 2 . . . 2 2 Robots Melted . | . . . . . . . . . . . . . . . . . . . . . . . . . . . . . Combat Hostiles . | . . . . . . . . . . . . . . . . . . . . . . . . . . . . . Parts Melted 3 | . . . . . . . . . . . . . . . . . . . . . . . . . . . 1 2 Heat Transferred 3290 | 100 . 100 . . 890 100 100 . . . 550 150 . . 300 50 . 450 . . . . . . 200 . 300 . Parts Sabotaged 2 | . . . . . . . . . . . . . . . . . . . . . . . . . . . . 2 Parts Stolen . | . . . . . . . . . . . . . . . . . . . . . . . . . . . . . Parts Stripped . | . . . . . . . . . . . . . . . . . . . . . . . . . . . . . Power Chain Reactions 25 | 1 . . . . 9 1 2 . . . 2 1 . . 3 1 . 1 . . . . . . 2 . 2 . Missiles Intercepted . | . . . . . . . . . . . . . . . . . . . . . . . . . . . . . Alert | -11 -10 -10 -10 -9 -8 -7 -7 -7 -7 -6 -6 -6 -6 -6 -5 -5 -5 -5 -5 -5 -5 -4 -4 -4 -4 -4 -4 -3 ------- Run | Scr Mat Min Exi Min Mat Fac Low Low Dat Pro Fac Low Low Zio Pro Fac Was Fac Upp Upp War Pro Fac Ext Cet Arc Hub Res Peak Influence 1416 | 10 157 225 . 105 988 933 . . . . 816 . . . . 612 228 877 . . . . 222 169 200 220 1416 1293 Initial 743 | . 6 2 . . 4 449 . . . . . . . . . 123 203 19 . . . . . 68 . 80 . 743 Average 235 | 4 81 61 . 22 637 704 . . . . 287 . . . . 255 132 281 . . . . 82 53 126 15 304 683 Maximum Alert Level 4 | . . 1 . . 3 3 . . . . 3 . . . . 2 1 3 . . . . 1 . 1 1 4 4 Low Security (%) 62 | 100 100 97 . 100 9 . . . . . 51 . . . . 55 46 49 . . . . 91 100 81 94 30 . Level 1 9 | . . 2 . . 9 . . . . . 25 . . . . 20 53 19 . . . . 8 . 18 5 24 . Level 2 15 | . . . . . 30 49 . . . . 4 . . . . 24 . 20 . . . . . . . . 44 64 Level 3 11 | . . . . . 50 50 . . . . 18 . . . . . . 9 . . . . . . . . . 32 Level 4 . | . . . . . . . . . . . . . . . . . . . . . . . . . . . . 2 Level 5 . | . . . . . . . . . . . . . . . . . . . . . . . . . . . . . High Security . | . . . . . . . . . . . . . . . . . . . . . . . . . . . . . Max Security . | . . . . . . . . . . . . . . . . . . . . . . . . . . . . . Squads Dispatched 78 | . 1 . . . 9 12 . 1 . . 11 . . . . 7 . 8 . . . . 9 1 . . 7 12 Investigation 9 | . 1 . . . 2 2 . . . . 2 . . . . 1 . . . . . . 1 . . . . . Extermination 24 | . . . . . . 3 . . . . 5 . . . . 1 . 2 . . . . 4 . . . 4 5 Reinforcement 26 | . . . . . 4 5 . . . . 2 . . . . 4 . 5 . . . . 1 1 . . 3 1 Assault 14 | . . . . . 2 2 . 1 . . 1 . . . . 1 . 1 . . . . . . . . . 6 Garrison 5 | . . . . . 1 . . . . . 1 . . . . . . . . . . . 3 . . . . . Intercept . | . . . . . . . . . . . . . . . . . . . . . . . . . . . . . Construction Impeded 11 | . . . . . 1 3 . . . . 1 . . . . 1 . 2 . . . . . 1 . . 2 . Haulers Reinforced 5 | . . . . . . 2 . . . . . . . . . . . 2 . . . . . . . . . 1 Stealth | -11 -10 -10 -10 -9 -8 -7 -7 -7 -7 -6 -6 -6 -6 -6 -5 -5 -5 -5 -5 -5 -5 -4 -4 -4 -4 -4 -4 -3 --------- Run | Scr Mat Min Exi Min Mat Fac Low Low Dat Pro Fac Low Low Zio Pro Fac Was Fac Upp Upp War Pro Fac Ext Cet Arc Hub Res Distress Signals 23 | . 1 . . . 1 1 . . . . 2 . . . . . . 4 . . 1 . 1 2 1 . 5 4 Communications Jammed 59 | . . . . . . . . . . . . . . . . . . . . . . . . . . . 9 50 Distress Signals 59 | . . . . . . . . . . . . . . . . . . . . . . . . . . . 9 50 Times Spotted 482 | . 8 11 . 14 47 41 14 15 . 6 45 9 3 . 16 24 6 42 17 5 10 7 17 15 8 9 39 54 Peak Tracking Total 9 | . 2 3 . 3 7 5 9 9 . 4 4 4 2 . 9 6 1 5 5 5 9 5 3 5 5 1 8 9 Tactical Retreats 29 | . 1 . . 1 2 1 1 . . . 1 1 . . 3 2 . 3 . 1 1 . 2 1 . . 5 3 Traps | -11 -10 -10 -10 -9 -8 -7 -7 -7 -7 -6 -6 -6 -6 -6 -5 -5 -5 -5 -5 -5 -5 -4 -4 -4 -4 -4 -4 -3 ------- Run | Scr Mat Min Exi Min Mat Fac Low Low Dat Pro Fac Low Low Zio Pro Fac Was Fac Upp Upp War Pro Fac Ext Cet Arc Hub Res Traps Triggered 22 | . 2 . . . 3 4 . . . . . . . . . 5 . 1 . . . . . 2 . . 1 4 Indirectly 7 | . . . . . 3 1 . . . . . . . . . 3 . . . . . . . . . . . . Trap Hack Attempts . | . . . . . . . . . . . . . . . . . . . . . . . . . . . . . Triggered . | . . . . . . . . . . . . . . . . . . . . . . . . . . . . . Disarmed . | . . . . . . . . . . . . . . . . . . . . . . . . . . . . . Reprogrammed . | . . . . . . . . . . . . . . . . . . . . . . . . . . . . . Reused . | . . . . . . . . . . . . . . . . . . . . . . . . . . . . . Traps Extracted . | . . . . . . . . . . . . . . . . . . . . . . . . . . . . . Installed . | . . . . . . . . . . . . . . . . . . . . . . . . . . . . . Triggered 22 | . . . . . . . . 1 . . . . . . 2 2 . . . . 16 . . 1 . . . . Machines | -11 -10 -10 -10 -9 -8 -7 -7 -7 -7 -6 -6 -6 -6 -6 -5 -5 -5 -5 -5 -5 -5 -4 -4 -4 -4 -4 -4 -3 ---------- Run | Scr Mat Min Exi Min Mat Fac Low Low Dat Pro Fac Low Low Zio Pro Fac Was Fac Upp Upp War Pro Fac Ext Cet Arc Hub Res Machines Disabled 89 | . . 2 . . 15 2 . . . . 5 . . 3 . 6 . 12 . 1 . . 1 1 1 1 35 4 Max in Single Turn 20 | . . 1 . . 5 2 . . . . 2 . . 1 . 2 . 5 . 1 . . 1 1 . 1 20 1 Garrison Access 4 | . . . . . 1 1 . . . . . . . . . 1 . 1 . . . . . . . . . . Network Hub 2 | . . . . . . . . . . . . . . . . . . . . . . . . . . . 2 . Machines Sabotaged . | . . . . . . . . . . . . . . . . . . . . . . . . . . . . . Garrisons Compromised . | . . . . . . . . . . . . . . . . . . . . . . . . . . . . . Overloaded Fab Kills . | . . . . . . . . . . . . . . . . . . . . . . . . . . . . . Fab Network Shutdowns 1 | . . . . . . . . . . . 1 . . . . . . . . . . . . . . . . . Hacking | -11 -10 -10 -10 -9 -8 -7 -7 -7 -7 -6 -6 -6 -6 -6 -5 -5 -5 -5 -5 -5 -5 -4 -4 -4 -4 -4 -4 -3 --------- Run | Scr Mat Min Exi Min Mat Fac Low Low Dat Pro Fac Low Low Zio Pro Fac Was Fac Upp Upp War Pro Fac Ext Cet Arc Hub Res Machines Accessed 67 | . 2 . 1 1 4 8 . . 4 . 9 2 . . . 7 . 9 . . 7 . 2 . 1 . 5 5 Terminals 39 | . 2 . . . 2 6 . . . . 7 . . . . 3 . 6 . . . . 2 . 1 . 5 5 Fabricators 3 | . . . . . . . . . . . 1 . . . . 2 . . . . . . . . . . . . Repair Stations 2 | . . . . . . 1 . . . . . . . . . . . 1 . . . . . . . . . . Recycling Units 1 | . . . . . 1 . . . . . . . . . . . . . . . . . . . . . . . Scanalyzers 3 | . . . . . . . . . . . 1 . . . . 1 . 1 . . . . . . . . . . Garrison Access 4 | . . . . . 1 1 . . . . . . . . . 1 . 1 . . . . . . . . . . Total Hacks 178 | . 7 . 1 1 6 18 . . 26 . 33 6 . . . 15 . 23 . . 9 . 3 . 3 . 11 16 Successful 102 | . 2 . 1 1 4 6 . . 26 . 15 6 . . . 9 . 12 . . 9 . 1 . 1 . 6 3 Failed 75 | . 4 . . . 2 12 . . . . 18 . . . . 6 . 11 . . . . 2 . 2 . 5 13 Catastrophic 20 | . . . . . . 4 . . . . 3 . . . . 2 . 3 . . . . 2 . 1 . 1 4 Database Lockouts 1 | . 1 . . . . . . . . . . . . . . . . . . . . . . . . . . . Manual 72 | . 7 . . . 6 10 . . . . 8 . . . . 3 . 12 . . 1 . 3 . 1 . 6 15 Terminals 102 | . 7 . . . 4 13 . . . . 20 . . . . 7 . 18 . . . . 3 . 3 . 11 16 Fabricators 8 | . . . . . . . . . . . 4 . . . . 4 . . . . . . . . . . . . Repair Stations 6 | . . . . . . 4 . . . . . . . . . . . 2 . . . . . . . . . . Recycling Units 1 | . . . . . 1 . . . . . . . . . . . . . . . . . . . . . . . Scanalyzers 13 | . . . . . . . . . . . 9 . . . . 3 . 1 . . . . . . . . . . Garrison Access 5 | . . . . . 1 1 . . . . . . . . . 1 . 2 . . . . . . . . . . Terminal Hacks 66 | . 2 . 1 1 1 . . . 26 . 4 6 . . . 2 . 6 . . 9 . 1 . 1 . 4 2 Record 26 | . . . 1 . . . . . 11 . . 5 . . . . . . . . 9 . . . . . . . Part Schematic 7 | . 1 . . . . . . . 5 . 1 . . . . . . . . . . . . . . . . . Robot Schematic 7 | . . . . . . . . . 7 . . . . . . . . . . . . . . . . . . . Prototype ID Bank 4 | . . . . . . . . . 3 . . . . . . . . 1 . . . . . . . . . . Open Door 3 | . . . . 1 . . . . . . . 1 . . . . . . . . . . . . 1 . . . Branch Access Points 6 | . 1 . . . . . . . . . 1 . . . . 1 . 1 . . . . 1 . . . . 1 Terminal Index 2 | . . . . . . . . . . . 1 . . . . . . . . . . . . . . . 1 . Fabricator Index 1 | . . . . . . . . . . . . . . . . . . 1 . . . . . . . . . . Unreport Threat 5 | . . . . . . . . . . . . . . . . 1 . 1 . . . . . . . . 2 1 Locate Traps 1 | . . . . . . . . . . . . . . . . . . 1 . . . . . . . . . . Recall Assault 1 | . . . . . . . . . . . 1 . . . . . . . . . . . . . . . . . Hauler Manifests 2 | . . . . . 1 . . . . . . . . . . . . 1 . . . . . . . . . . Zone Layout 1 | . . . . . . . . . . . . . . . . . . . . . . . . . . . 1 . Fabricator Hacks 6 | . . . . . . . . . . . 3 . . . . 3 . . . . . . . . . . . . Load Schematic 2 | . . . . . . . . . . . . . . . . 2 . . . . . . . . . . . . Build 4 | . . . . . . . . . . . 3 . . . . 1 . . . . . . . . . . . . Repair Station Hacks 4 | . . . . . . 3 . . . . . . . . . . . 1 . . . . . . . . . . Scan Component 3 | . . . . . . 2 . . . . . . . . . . . 1 . . . . . . . . . . Repair 1 | . . . . . . 1 . . . . . . . . . . . . . . . . . . . . . . Recycling Unit Hacks . | . . . . . . . . . . . . . . . . . . . . . . . . . . . . . Scanalyzer 9 | . . . . . . . . . . . 6 . . . . 3 . . . . . . . . . . . . Insert Component 2 | . . . . . . . . . . . 1 . . . . 1 . . . . . . . . . . . . Analyze 7 | . . . . . . . . . . . 5 . . . . 2 . . . . . . . . . . . . Garrison Access Hacks 2 | . . . . . 1 . . . . . . . . . . . . 1 . . . . . . . . . . Seal Access 2 | . . . . . 1 . . . . . . . . . . . . 1 . . . . . . . . . . Unauthorized Hacks 15 | . . . . . 2 3 . . . . 2 . . . . 1 . 4 . . . . . . . . 2 1 Terminals 12 | . . . . . 1 2 . . . . 2 . . . . . . 4 . . . . . . . . 2 1 Track 3 | . . . . . . . . . . . . . . . . . . 2 . . . . . . . . 1 . Assimilate 1 | . . . . . . . . . . . 1 . . . . . . . . . . . . . . . . . Botnet 8 | . . . . . 1 2 . . . . 1 . . . . . . 2 . . . . . . . . 1 1 Fabricators . | . . . . . . . . . . . . . . . . . . . . . . . . . . . . . Repair Stations . | . . . . . . . . . . . . . . . . . . . . . . . . . . . . . Recycling Units 1 | . . . . . 1 . . . . . . . . . . . . . . . . . . . . . . . Tunnel 1 | . . . . . 1 . . . . . . . . . . . . . . . . . . . . . . . Scanalyzers . | . . . . . . . . . . . . . . . . . . . . . . . . . . . . . Garrison Access 2 | . . . . . . 1 . . . . . . . . . 1 . . . . . . . . . . . . Jam 2 | . . . . . . 1 . . . . . . . . . 1 . . . . . . . . . . . . Data Cores Recovered . | . . . . . . . . . . . . . . . . . . . . . . . . . . . . . Used . | . . . . . . . . . . . . . . . . . . . . . . . . . . . . . Hacking Detections 46 | . 2 . . . 2 7 . . . . 9 . . . . 6 . 8 . . . . 2 . 1 . 5 4 Full Trace Events 3 | . . . . . . . . . . . 2 . . . . . . . . . . . 1 . . . . . Feedback Events . | . . . . . . . . . . . . . . . . . . . . . . . . . . . . . Feedback Blocked . | . . . . . . . . . . . . . . . . . . . . . . . . . . . . . Robot Schematics Acquired 7 | . . . . . . . . . 7 . . . . . . . . . . . . . . . . . . . Robots Built . | . . . . . . . . . . . . . . . . . . . . . . . . . . . . . Matter . | . . . . . . . . . . . . . . . . . . . . . . . . . . . . . Time . | . . . . . . . . . . . . . . . . . . . . . . . . . . . . . Total Robot Build Rating . | . . . . . . . . . . . . . . . . . . . . . . . . . . . . . Part Schematics Acquired 8 | . 1 . . . . . . . 5 . 1 . . . . 1 . . . . . . . . . . . . Parts Built 7 | . . . . . . . . . . . 6 . . . . 1 . . . . . . . . . . . . Matter 1002 | . . . . . . . . . . . 768 . . . . 234 . . . . . . . . . . . . Time 250 | . . . . . . . . . . . 192 . . . . 58 . . . . . . . . . . . . Total Part Build Rating 55 | . . . . . . . . . . . 48 . . . . 7 . . . . . . . . . . . . Parts Repaired 1 | . . . . . . 1 . . . . . . . . . . . . . . . . . . . . . . Time 38 | . . . . . . 38 . . . . . . . . . . . . . . . . . . . . . . Parts Recycled . | . . . . . . . . . . . . . . . . . . . . . . . . . . . . . Recycled Matter . | . . . . . . . . . . . . . . . . . . . . . . . . . . . . . Retrieved Matter . | . . . . . . . . . . . . . . . . . . . . . . . . . . . . . Retrieved Components . | . . . . . . . . . . . . . . . . . . . . . . . . . . . . . Parts Scanalyzed 2 | . . . . . . . . . . . 1 . . . . 1 . . . . . . . . . . . . Part Schematics Acquired 1 | . . . . . . . . . . . . . . . . 1 . . . . . . . . . . . . Parts Damaged . | . . . . . . . . . . . . . . . . . . . . . . . . . . . . . Bothacking | -11 -10 -10 -10 -9 -8 -7 -7 -7 -7 -6 -6 -6 -6 -6 -5 -5 -5 -5 -5 -5 -5 -4 -4 -4 -4 -4 -4 -3 ------------ Run | Scr Mat Min Exi Min Mat Fac Low Low Dat Pro Fac Low Low Zio Pro Fac Was Fac Upp Upp War Pro Fac Ext Cet Arc Hub Res Used RIF Installer . | . . . . . . . . . . . . . . . . . . . . . . . . . . . . . Robots Hacked . | . . . . . . . . . . . . . . . . . . . . . . . . . . . . . Non-combat . | . . . . . . . . . . . . . . . . . . . . . . . . . . . . . Combat . | . . . . . . . . . . . . . . . . . . . . . . . . . . . . . Robot Hacks Applied . | . . . . . . . . . . . . . . . . . . . . . . . . . . . . . Relay Couplers Released 3 | . . . . . 3 . . . . . . . . . . . . . . . . . . . . . . . Machine Destruction 3 | . . . . . 3 . . . . . . . . . . . . . . . . . . . . . . . Robots Rewired 5 | . . . . . . . 2 1 . . . . . . 2 . . . . . . . . . . . . . Allies Hacked . | . . . . . . . . . . . . . . . . . . . . . . . . . . . . . Hacks Repelled . | . . . . . . . . . . . . . . . . . . . . . . . . . . . . . Allies | -11 -10 -10 -10 -9 -8 -7 -7 -7 -7 -6 -6 -6 -6 -6 -5 -5 -5 -5 -5 -5 -5 -4 -4 -4 -4 -4 -4 -3 -------- Run | Scr Mat Min Exi Min Mat Fac Low Low Dat Pro Fac Low Low Zio Pro Fac Was Fac Upp Upp War Pro Fac Ext Cet Arc Hub Res Total Allies 11 | . . . . . . . 2 1 . 1 . 3 . . 2 . . . . . . . . 1 1 . . . Largest Group 3 | . . . . . . . 2 1 . 1 . 3 . . 2 2 . . . . . . . 1 2 1 . . Highest-Rated Group 250 | . . . . . . . 32 30 . 94 . 93 . . 79 79 . . . . . . . 156 250 156 . . Highest-Rated Ally 156 | . . . . . . . 16 30 . 94 . 31 . . 49 49 . . . . . . . 156 156 156 . . Total Orders . | . . . . . . . . . . . . . . . . . . . . . . . . . . . . . Ally Attacks 52 | . . . . . . . 2 . . 6 . 16 . . 3 . . . . . . . . 3 22 . . . Total Damage 1104 | . . . . . . . 18 . . 89 . 278 . . 92 . . . . . . . . 170 457 . . . Kills 11 | . . . . . . . . . . 2 . 3 . . 1 . . . . . . . . 2 3 . . . Allies Corrupted 3 | . . . . . . . . . . . . . . . . 2 . . . . . . . . 1 . . . Allies Melted . | . . . . . . . . . . . . . . . . . . . . . . . . . . . . . Intel | -11 -10 -10 -10 -9 -8 -7 -7 -7 -7 -6 -6 -6 -6 -6 -5 -5 -5 -5 -5 -5 -5 -4 -4 -4 -4 -4 -4 -3 ------- Run | Scr Mat Min Exi Min Mat Fac Low Low Dat Pro Fac Low Low Zio Pro Fac Was Fac Upp Upp War Pro Fac Ext Cet Arc Hub Res Robot Analysis Total . | . . . . . . . . . . . . . . . . . . . . . . . . . . . . . Derelict Logs Recovered 9 | . . 2 . . . . . 1 . . . 1 2 1 1 . . . 1 . . . . . . . . . Drone Launches . | . . . . . . . . . . . . . . . . . . . . . . . . . . . . . Drone Recoveries . | . . . . . . . . . . . . . . . . . . . . . . . . . . . . . Exploration | -11 -10 -10 -10 -9 -8 -7 -7 -7 -7 -6 -6 -6 -6 -6 -5 -5 -5 -5 -5 -5 -5 -4 -4 -4 -4 -4 -4 -3 ------------- Run | Scr Mat Min Exi Min Mat Fac Low Low Dat Pro Fac Low Low Zio Pro Fac Was Fac Upp Upp War Pro Fac Ext Cet Arc Hub Res Turns Passed 40523 | 81 467 2030 474 2035 1179 2253 1912 736 141 798 2838 796 685 2746 698 1245 750 1645 747 1634 1357 493 1432 1681 293 5872 1409 2096 Spaces Moved 15191 | 47 300 640 208 729 491 1078 546 388 79 432 1356 512 408 1353 314 523 406 631 389 487 769 242 620 675 117 232 513 706 Core 466 | . . . . . . . . . . . . . . 301 . . . . . . . . . . . 165 . . Treads 12295 | 19 1 97 208 449 445 454 513 388 79 432 779 512 408 1052 314 523 406 631 389 487 769 242 620 675 117 67 513 706 Legs . | . . . . . . . . . . . . . . . . . . . . . . . . . . . . . Wheels 2430 | 28 299 543 . 280 46 624 33 . . . 577 . . . . . . . . . . . . . . . . . Hover . | . . . . . . . . . . . . . . . . . . . . . . . . . . . . . Flight . | . . . . . . . . . . . . . . . . . . . . . . . . . . . . . Fastest Speed 50 | 100 100 120 160 150 160 130 180 180 180 180 120 145 145 50 165 150 150 170 170 170 170 178 170 175 180 180 180 180 Average Speed 206 | 124 105 134 220 205 183 157 183 180 180 180 151 145 160 191 165 169 150 170 170 170 170 182 174 179 180 2505 180 190 Slowest Speed 3450 | 160 160 200 240 240 200 270 220 180 180 180 205 145 165 2050 165 170 170 170 170 170 178 186 186 183 183 3450 180 195 Overloaded Moves . | . . . . . . . . . . . . . . . . . . . . . . . . . . . . . Propulsion Burnouts . | . . . . . . . . . . . . . . . . . . . . . . . . . . . . . Robots Hopped . | . . . . . . . . . . . . . . . . . . . . . . . . . . . . . Cave-ins Triggered . | . . . . . . . . . . . . . . . . . . . . . . . . . . . . . Exploration Rate (%) 54 | 5 49 99 54 99 45 31 66 67 72 63 33 64 52 85 52 16 86 24 59 58 87 48 20 49 59 71 54 27 Regions Visited 28 Branch Regions 19 Pre-discovered Areas 6 | . . . 1 . 1 . . . 1 . . 1 . 2 . . . . . . . . . . . . . . Known Exits Taken 15 | . 1 1 . . . 1 . . . . 1 . . . 1 . . 1 1 1 1 1 1 1 1 1 1 . Unknown Exits Taken 11 | 1 . . 1 1 1 . 1 1 1 1 . 1 1 1 . . . . . . . . . . . . . . Scrap Searched 22 | . . 1 . 1 . . 6 1 . . . 3 1 3 3 . . . 1 . . 2 . . . . . . Spaces Dug 398 | . 4 40 . 22 35 50 9 . . . 22 . 20 2 20 12 . 19 61 4 7 . 12 1 . . 12 46 Terrain Destroyed 2017 | 1 5 160 . 46 62 73 72 65 . 74 109 8 62 2 95 97 . 111 224 62 9 20 23 2 25 . 350 260 Melee 35 | . . . . . . 24 9 . . . . . . 2 . . . . . . . . . . . . . . Projectile 250 | . 5 4 . 5 1 . . . . . 33 . 9 . . 16 . 34 3 4 9 . 23 2 . . 25 77 AOE 1732 | 1 . 156 . 41 61 49 63 65 . 74 76 8 53 . 95 81 . 77 221 58 . 20 . . 25 . 325 183 Terrain Rammed . | . . . . . . . . . . . . . . . . . . . . . . . . . . . . . Walls Destroyed . | . . . . . . . . . . . . . . . . . . . . . . . . . . . . . Machines Disabled . | . . . . . . . . . . . . . . . . . . . . . . . . . . . . . Actions | -11 -10 -10 -10 -9 -8 -7 -7 -7 -7 -6 -6 -6 -6 -6 -5 -5 -5 -5 -5 -5 -5 -4 -4 -4 -4 -4 -4 -3 --------- Run | Scr Mat Min Exi Min Mat Fac Low Low Dat Pro Fac Low Low Zio Pro Fac Was Fac Upp Upp War Pro Fac Ext Cet Arc Hub Res Total 22386 | 62 368 1735 225 1168 696 1411 1372 405 78 442 1829 539 430 1486 493 817 518 974 452 1274 807 286 900 1088 186 277 855 1213 Wait 4565 | . 9 1036 . 372 93 86 705 . . . 165 2 . 8 113 155 38 130 37 767 . 22 118 299 20 26 144 220 Move 15164 | 46 299 639 207 728 490 1077 545 387 78 431 1355 511 407 1352 313 523 405 630 388 486 768 241 619 674 116 231 512 706 Hop . | . . . . . . . . . . . . . . . . . . . . . . . . . . . . . Pick Up 300 | 3 7 5 12 9 15 28 19 . . 1 28 3 . 38 3 23 9 11 1 2 10 4 17 15 8 2 7 20 Fast Attach 126 | 1 2 1 1 . 4 10 3 . . . 13 3 1 24 1 5 6 5 . . 3 . 9 9 5 . 9 11 Attach 153 | . . 4 1 5 6 14 4 1 . . 25 . . 8 . 9 1 6 5 . 1 6 17 3 2 . 10 25 Detach 81 | . . . . . 1 2 . . . . 4 . 2 5 2 4 3 1 1 . 3 4 15 1 4 . 11 18 Swap 368 | 3 5 9 1 8 22 39 15 4 . 4 33 3 2 . 1 19 7 47 8 10 5 2 16 27 5 4 35 34 Drop 298 | 3 6 1 3 1 13 25 11 . . . 22 5 1 34 4 26 21 12 1 1 7 1 21 26 12 2 17 22 Fire 1143 | 2 39 35 . 40 51 91 35 10 . 6 170 12 17 1 24 52 28 126 11 8 10 6 59 34 14 11 100 151 Melee 53 | . . . . . . 28 9 . . . . . . 16 . . . . . . . . . . . . . . Ram 5 | . . . . 1 . 1 . . . . 3 . . . . . . . . . . . . . . . . . Kick . | . . . . . . . . . . . . . . . . . . . . . . . . . . . . . Crush 60 | 4 1 5 . 4 1 2 1 . . . 11 . . . . 1 . 6 . . . . 9 . . 1 8 6 Escape Stasis 10 | . . . . . . 8 . . . . . . . . . . . . . . . . . . . . 2 . Rewire 60 | . . . . . . . 25 3 . . . . . . 32 . . . . . . . . . . . . . Trap . | . . . . . . . . . . . . . . . . . . . . . . . . . . . . . Miscellaneous . | . . . . . . . . . . . . . . . . . . . . . . . . . . . . . Route ------- -11/Scrapyard -10/Materials (discovered 2 exits: *Min x2) -10/Mines (discovered 3 exits: [*Mat x2] / *Exi) -10/Exiles -9/Mines (discovered 2 exits: *Mat x2) -8/Materials -7/Factory (discovered 2 exits: *Sto / *Low) -7/Lower Caves -7/Lower Caves (discovered 2 exits: *Fac / *Dat) -7/Data Miner -6/Proximity Caves -6/Factory (discovered 4 exits: *Fac x2 / *Low x2) -6/Lower Caves -6/Lower Caves (discovered 2 exits: Fac / [*Zio]) -6/Zion (discovered 2 exits: [*Dee] / [*Pro]) -5/Proximity Caves -5/Factory (discovered 4 exits: Fac x2 / Upp x2) -5/Waste -5/Factory (discovered 2 exits: *Upp x2) -5/Upper Caves -5/Upper Caves -5/Warlord -4/Proximity Caves -4/Factory (discovered 6 exits: *Res / *Upp x2 / *Ext x2 / Arm) -4/Extension (discovered 2 exits: *Res / *Cet) -4/Cetus -4/Archives (discovered 2 exits: *Res / *Hub) -4/Hub_04(d) (discovered 3 exits: *Res x3) -3/Research (discovered 3 exits: *Res / Tes x2) History --------- Turn | Location | Event 4 | -11/Scrapyard | Discovered new exit (range 3) 82 | -11/Scrapyard | Entered Materials 82 | -10/Materials | Discovered new exit (range 8) 137 | -10/Materials | Central database locked down 137 | -10/Materials | Identified exit to Mines 301 | -10/Materials | Build established: Mutant 549 | -10/Materials | Entered Mines 556 | -10/Mines | Received a Rocket Launcher from a helpful Derelict 564 | -10/Mines | Discovered new exit (range 12) 577 | -10/Mines | YI-UF0 nonchalantly dropped a Grenade Launcher on the ground 612 | -10/Mines | Destroyed YI-UF0 622 | -10/Mines | Found Prototype Storage 624 | -10/Mines | Found Prototype Launcher 625 | -10/Mines | Identified YI-UF0's Doublenader 731 | -10/Mines | Assembled infested the area 1867 | -10/Mines | Discovered new exit (range 10) 2064 | -10/Mines | Identified exit to Exiles 2120 | -10/Mines | Learned 2 Materials zone layouts 2455 | -10/Mines | Deemed a non-threat by the Exiles lab entrance 2579 | -10/Mines | Entered Exiles 2629 | -10/Exiles | Met 8R-AWN 2661 | -10/Exiles | Met EX-HEX 2732 | -10/Exiles | Identified YI-UF0's Bottomless Matter Pit 2906 | -10/Exiles | Met EX-DEC 2916 | -10/Exiles | Learned location of Zion (-6) 3015 | -10/Exiles | Build established: Hauler-Mutant 3027 | -10/Exiles | Discovered new exit (range 14) 3053 | -10/Exiles | Entered Mines 3141 | -9/Mines | Discovered new exit (range 12) 3164 | -9/Mines | Met a Derelict who couldn't figure out how to use a Trap Extractor 3327 | -9/Mines | Discovered new exit (range 15) 3441 | -9/Mines | Excavation squad dispatched 3441 | -9/Mines | A large section of the Mines collapsed 4363 | -9/Mines | Found a hidden stash of uninstalled traps 4413 | -9/Mines | A weapon hastily lodged in a ceiling crevice suddenly fell to the ground 4861 | -9/Mines | Core integrity fell below 50% 4899 | -9/Mines | Core integrity fell below 20% 5088 | -9/Mines | Entered Materials 5088 | -8/Materials | Evolved 4 slots: Propulsion x1, Utility x3 5227 | -8/Materials | Destroyed 7 combat bots 5312 | -8/Materials | Garrison activated, responded to threat 5888 | -8/Materials | First assault squad dispatched 6010 | -8/Materials | Destroyed 9 combat bots 6220 | -8/Materials | Discovered new exit (range 13) 6267 | -8/Materials | Entered Factory 6267 | -7/Factory | Evolved 2 slots: Utility x2 6585 | -7/Factory | Discovered new exit (range 11) 6667 | -7/Factory | First assault squad dispatched 6695 | -7/Factory | Identified exit to Storage 6918 | -7/Factory | Lost 3 parts (1u2w) 7064 | -7/Factory | Build established: Hauler-Assassin 7367 | -7/Factory | Discovered new exit (range 9) 7645 | -7/Factory | System corruption reached 10% 7722 | -7/Factory | Repaired Adv. Terrain Scanner 8222 | -7/Factory | Build established: Hauler-Mutant 8457 | -7/Factory | Found Prototype Launcher 8459 | -7/Factory | Lost 4 parts (2n2u) 8465 | -7/Factory | Found Prototype Launcher 8468 | -7/Factory | Found Prototype Launcher 8516 | -7/Factory | Identified exit to Lower Caves 8520 | -7/Factory | Entered Lower Caves 8722 | -7/Lower Caves | Identified Rocket Array (x3) 9362 | -7/Lower Caves | Attracted the attention of an 0b10 outpost 9399 | -7/Lower Caves | Destroyed 9 combat bots 9594 | -7/Lower Caves | Attracted the attention of an 0b10 checkpoint 9925 | -7/Lower Caves | Encountered a Warlord checkpoint 10073 | -7/Lower Caves | Spotted B-75 Beast 10232 | -7/Lower Caves | Destroyed B-75 Beast 10235 | -7/Lower Caves | Discovered new exit (range 20) 10432 | -7/Lower Caves | Entered another Lower Caves area 10647 | -7/Lower Caves | Discovered new exit (range 5) 10819 | -7/Lower Caves | Attracted the attention of an 0b10 outpost 10849 | -7/Lower Caves | Destroyed 10 combat bots 11159 | -7/Lower Caves | Discovered new exit (range 5) 11168 | -7/Lower Caves | Entered Data Miner 11168 | -7/Data Miner | Discovered new exit (range 6) 11195 | -7/Data Miner | Met Data Miner 11240 | -7/Data Miner | Learned location of Section 7 (-2) 11240 | -7/Data Miner | Acquired the access code to Warlord's prototype stash 11264 | -7/Data Miner | Received God Mode back door access code from Data Miner 11309 | -7/Data Miner | Entered Proximity Caves 11455 | -6/Proximity Caves | Escorted by Enhanced Grunt 11498 | -6/Proximity Caves | Spotted B-75 Beast 12041 | -6/Proximity Caves | Discovered new exit (range 7) 12107 | -6/Proximity Caves | Entered Factory 12107 | -6/Factory | Evolved 2 slots: Propulsion x1, Utility x1 12367 | -6/Factory | Lost 4 parts (1n1u2w) 12492 | -6/Factory | Lost 3 parts (1p1n1u) 12492 | -6/Factory | Discovered new exit (range 7) 12796 | -6/Factory | Build established: Scavenger-Mutant 13129 | -6/Factory | Lost 4 parts (1n1u2w) 13235 | -6/Factory | Identified exit to Lower Caves 13603 | -6/Factory | Build established: Hauler-Mutant 13695 | -6/Factory | Fabricated Biometal Medium Treads? 13760 | -6/Factory | Lost 5 parts (2n1u2w) 13911 | -6/Factory | Fabricated Biometal Medium Treads? 14032 | -6/Factory | Fabricated Biometal Medium Treads? 14091 | -6/Factory | Lost 4 parts (1p1n2u) 14182 | -6/Factory | Garrison activated, responded to threat 14339 | -6/Factory | Discovered new exit (range 14) 14417 | -6/Factory | Local fabrication network quarantined 14557 | -6/Factory | First assault squad dispatched 14558 | -6/Factory | Found Launcher Loader 14788 | -6/Factory | Incoming investigation squad redirected 14945 | -6/Factory | Entered Lower Caves 15120 | -6/Lower Caves | Encountered a Warlord checkpoint 15170 | -6/Lower Caves | A Commander dispatched an escort 15177 | -6/Lower Caves | Learned Extension terminal intel 15225 | -6/Lower Caves | Learned 12 Factory zone layouts 15317 | -6/Lower Caves | Attracted the attention of an 0b10 checkpoint 15397 | -6/Lower Caves | Discovered new exit (range 15) 15741 | -6/Lower Caves | Entered another Lower Caves area 15741 | -6/Lower Caves | Accompanied by 2 allies 15742 | -6/Lower Caves | Commander's escort returned to base 15742 | -6/Lower Caves | Commander's escort returned to base 15742 | -6/Lower Caves | Identified exit to Factory 16085 | -6/Lower Caves | Learned 4 Factory zone layouts 16370 | -6/Lower Caves | Discovered new exit (range 8) 16408 | -6/Lower Caves | Learned Factory security intel 16426 | -6/Lower Caves | Entered Zion 16512 | -6/Zion | Discovered new exit (range 18) 17005 | -6/Zion | Found Prototype Processor 17005 | -6/Zion | Identified Exp. Target Analyzer 17025 | -6/Zion | Found Prototype Processor 17025 | -6/Zion | Identified Exp. Terrain Scan Processor 17063 | -6/Zion | Found Prototype Processor 17063 | -6/Zion | Identified Exp. Melee Analysis Suite 17350 | -6/Zion | Found Exp. Terrain Scan Processor 17504 | -6/Zion | Learned Factory terminal intel 17587 | -6/Zion | Found Prototype Launcher 17587 | -6/Zion | Identified Gui. Missile Launcher 18638 | -6/Zion | Build established: Machinist-Mutant 18663 | -6/Zion | Discovered new exit (range 5) 18960 | -6/Zion | Build established: Hauler-Mutant 19172 | -6/Zion | Entered Proximity Caves 19179 | -5/Proximity Caves | Learned Factory security intel 19307 | -5/Proximity Caves | Received a Behemoth hack from an annoying Tinkerer 19320 | -5/Proximity Caves | Attracted the attention of an 0b10 outpost 19356 | -5/Proximity Caves | Destroyed 9 combat bots 19643 | -5/Proximity Caves | Attracted the attention of an 0b10 checkpoint 19870 | -5/Proximity Caves | Entered Factory 19870 | -5/Factory | Accompanied by 2 allies 19870 | -5/Factory | Evolved 2 slots: Utility x2 19871 | -5/Factory | Identified exit to Factory 19871 | -5/Factory | Identified exit to Upper Caves 19874 | -5/Factory | Loaded intel: 20 terminal locations 20528 | -5/Factory | Build established: Hauler-Skirmisher 20886 | -5/Factory | Incoming investigation squad redirected 20943 | -5/Factory | Fabricated Adv. Armor Integrity Analyzer? 21070 | -5/Factory | First assault squad dispatched 21086 | -5/Factory | Incoming assault squad redirected 21115 | -5/Factory | Sucked down chute 21115 | -5/Factory | Entered Waste 21195 | -5/Waste | Destroyed C-40 Crusher 21220 | -5/Waste | Found Damper Plating 21240 | -5/Waste | Destroyed C-40 Crusher 21263 | -5/Waste | Destroyed C-40 Crusher 21282 | -5/Waste | Found Damper Plating 21289 | -5/Waste | Found Damper Plating 21305 | -5/Waste | Destroyed C-40 Crusher 21336 | -5/Waste | Found Damper Plating 21367 | -5/Waste | Spotted C-40 Crusher 21381 | -5/Waste | Destroyed C-40 Crusher 21442 | -5/Waste | Discovered new exit (range 22) 21865 | -5/Waste | Entered Factory 22573 | -5/Factory | Build established: Hauler-Mutant 23065 | -5/Factory | First assault squad dispatched 23083 | -5/Factory | Incoming assault squad redirected 23140 | -5/Factory | Found Prototype Processor 23238 | -5/Factory | Spotted B-75 Beast 23350 | -5/Factory | Destroyed B-75 Beast 23402 | -5/Factory | Lost 3 parts (1u2w) 23510 | -5/Factory | Entered Upper Caves 23512 | -5/Upper Caves | Identified Exp. Signal Interpreter 23653 | -5/Upper Caves | Learned Factory emergency access door positions 24218 | -5/Upper Caves | Discovered new exit (range 14) 24250 | -5/Upper Caves | Identified exit to Upper Caves 24257 | -5/Upper Caves | Entered another Upper Caves area 25745 | -5/Upper Caves | Found Alien Artifact 25868 | -5/Upper Caves | Encountered a Warlord checkpoint 25869 | -5/Upper Caves | Discovered new exit (range 10) 25882 | -5/Upper Caves | Identified exit to Warlord 25891 | -5/Upper Caves | Entered Warlord 25999 | -5/Warlord | Discovered new exit (range 14) 26443 | -5/Warlord | Received a Watcher feed algorithm from an ecstatic Tinkerer 26824 | -5/Warlord | Met Warlord 26849 | -5/Warlord | Warlord's base attacked by MAIN.C 26850 | -5/Warlord | Opened Warlord's prototype stash 26862 | -5/Warlord | Found Prototype Processor 26862 | -5/Warlord | Identified Exp. Core Analyzer 26870 | -5/Warlord | Found Prototype Hackware 26879 | -5/Warlord | Found Prototype Reactor 27106 | -5/Warlord | Warlord forces counterattacked 27141 | -5/Warlord | Found Prototype Ballistic Cannon 27155 | -5/Warlord | Found Prototype Ballistic Cannon 27174 | -5/Warlord | Identified Hvy. Autocannon (x2) 27177 | -5/Warlord | Spotted B-86 Titan 27186 | -5/Warlord | Spotted Executioner 27246 | -5/Warlord | Identified exit to Proximity Caves 27248 | -5/Warlord | Entered Proximity Caves 27724 | -4/Proximity Caves | Discovered exit to Factory (range 10) 27741 | -4/Proximity Caves | Entered Factory 27741 | -4/Factory | Evolved 2 slots: Power x1, Utility x1 27742 | -4/Factory | Identified Vortex Chain Reactor 28316 | -4/Factory | Discovered new exit (range 4) 28321 | -4/Factory | Identified exit to Upper Caves 28385 | -4/Factory | Garrison activated, responded to threat 28419 | -4/Factory | Spotted B-86 Titan 28455 | -4/Factory | Discovered new exit (range 7) 28510 | -4/Factory | Identified exit to Research 28946 | -4/Factory | Identified System Mapper 28948 | -4/Factory | Identified exit to Extension 28948 | -4/Factory | Identified exit to Armory 29173 | -4/Factory | Entered Extension 29174 | -4/Extension | Loaded intel: 18 terminal locations 29427 | -4/Extension | Spotted B-86 Titan 29451 | -4/Extension | Destroyed B-86 Titan 30067 | -4/Extension | Destroyed B-86 Titan 30395 | -4/Extension | Rescued A7 30799 | -4/Extension | Discovered exit to Research (range 16) 30799 | -4/Extension | Discovered new exit (range 16) 30851 | -4/Extension | Identified exit to Cetus 30854 | -4/Extension | Entered Cetus 30854 | -4/Cetus | Accompanied by 1 ally (A7) 30859 | -4/Cetus | Acquired a Cetus Manufacturing Module code from A7 30875 | -4/Cetus | Spotted Cetus Guard 30876 | -4/Cetus | Spotted Cetus Guard 30876 | -4/Cetus | Spotted Cetus Guard 30883 | -4/Cetus | Allies destroyed Cetus Guard 30886 | -4/Cetus | Destroyed Cetus Guard 30891 | -4/Cetus | Destroyed Cetus Guard 30891 | -4/Cetus | Spotted Cetus Guard 30898 | -4/Cetus | Destroyed Cetus Guard 31012 | -4/Cetus | Started Cetus Manufacturing Module 31026 | -4/Cetus | Escorted A7 to Cetus Mainframe 31037 | -4/Cetus | Manufactured an Enhanced Grunt 31047 | -4/Cetus | Cetus Manufacturing Module disabled 31120 | -4/Cetus | Discovered new exit (range 15) 31146 | -4/Cetus | Identified exit to Archives 31147 | -4/Cetus | Entered Archives 31147 | -4/Archives | Accompanied by 1 ally (A7) 31152 | -4/Archives | Received a hacking code to weaken MAIN.C 31277 | -4/Archives | Discovered exit to Research (range 16) 31298 | -4/Archives | Discovered new exit (range 15) 31321 | -4/Archives | Identified exit to Hub_04(d) 37019 | -4/Archives | Entered Hub_04(d) 37055 | -4/Hub_04(d) | Discovered exit to Research (range 16) 38000 | -4/Hub_04(d) | Discovered exit to Research (range 7) 38118 | -4/Hub_04(d) | Discovered exit to Research (range 7) 38424 | -4/Hub_04(d) | Network Hub disabled 38426 | -4/Hub_04(d) | Network Hub disabled 38428 | -4/Hub_04(d) | Entered Research 38428 | -3/Research | Evolved 2 slots: Utility x2 38453 | -3/Research | Found Prototype Processor 38453 | -3/Research | Identified Spectral Analyzer 38678 | -3/Research | First assault squad dispatched 38688 | -3/Research | System corruption reached 10% 38698 | -3/Research | Incoming assault squad redirected 38763 | -3/Research | Discovered new exit (range 7) 38797 | -3/Research | Identified exit to Research 38948 | -3/Research | Incoming assault squad redirected 38949 | -3/Research | Incoming assault squad redirected 39457 | -3/Research | Spotted B-86 Titan 39482 | -3/Research | Found Antimissile System 39841 | -3/Research | Identified exit to Testing 40361 | -3/Research | Destroyed 8 combat bots 40447 | -3/Research | Incoming assault squad redirected 40455 | -3/Research | Incoming assault squad redirected 40524 | -3/Research | Self-destructed Last Messages --------------- 40520_ W-44 Eye distress signal jammed. 40521_ P-80 Master destroyed. 40521_ U-05 Engineer destroyed. 40521_ Adv. Cooling System destroyed. 40521_ Destroyed Adv. Cooling System. 40521_ U-05 Engineer destroyed. 40521_ G-73 Enforcer destroyed. 40521_ I-47 Archangel distress signal jammed. 40521_ W-44 Eye distress signal jammed. 40521_ R-10 Processor collects Terrain Scanner. 40521_ U-05 Engineer call for reinforcements jammed. 40521_ Slug penetrates W-44 Eye. 40521_ W-44 Eye destroyed. 40521_ Penetrated by Slug. 40522_ I-47 Archangel distress signal jammed. 40522_ U-05 Engineer call for reinforcements jammed. 40523_ YI-UF0's Bottomless Matter Pit destroyed. 40523_ I-47 Archangel distress signal jammed. 40523_ Rocket Array destroyed. 40524_ R-10 Processor collects Wheel. Map ----- +----------------------------------------------------+ | ?????????????????????????????????????????????????? | | ?????????????????????????????????????????????????? | | ?????????????????????????????????????????????????? | | ?????????????????????????????????????????????????? | | ?????????????????????????????????????????????????? | | ?????????????????????????????????????????????????? | | ?????????????????????????????????????????????????? | | ?????????????????????????????????????????????????? | | ?????????????????????????????????????????????????? | | ?????????????????????????????????????????????????? | | ?????????????????????????????????????????????????? | | ????##########???????????????????????????????????? | | ##### ###???????#####?????????????????????? | | / + ??????? ??????????????????????? | | ##### """ # ??????? ??????????????????????? | | # """ #/######### #??????????????????????? | | # """ # # #??????????????????????? | | # """ # [[[ + #??????????????????????? | | # """ # [ [ # #??????????????????????? | | # # [ # #??????????????????????? | | # #R #??????????????????????? | | ! ######## #R #?????? #??????????????? | | ##?????### # *#???? #??????????????? | | #????????###########^^#?? +??????????????? | | # ###???????????????# # # ??????????????????? | | ###????????????????# !@=#?????????????????????? | | ##??????????????????# u% * ??????????????????? | | ????????????????????# u ####?????????????????? | | ????????????????????# #???????????????????? | | ????????????????????# T??????????????????? | | ????????????????????# ""#?????????????????? | | ????????????????????# l ##?????????????????? | | ????????????????????## % #??????????????????? | | ????????????????????? #??????????????????? | | ????????????????????? h u ??????????????????? | | ???????????????????? # = ??????????????????? | | ???????????????????? hgg ?????????????????? | | ???????????????????## % u ?????????????????? | | ????????????????????# #????????????????? | | ?????????????????????#### ???????????????????? | | ????????????????????????? i ?????????????????????? | | ?????????????????????????????????????????????????? | | ?????????????????????????????????????????????????? | | ?????????????????????????????????????????????????? | | ?????????????????????????????????????????????????? | | ?????????????????????????????????????????????????? | | ?????????????????????????????????????????????????? | | ?????????????????????????????????????????????????? | | ????????????????????????>????????????????????????? | | ?????????????????????????????????????????????????? | +----------------------------------------------------+ Best States ------------- Heat Dissipation 77 Coolant Potential 65 Energy Generation 55 Energy Capacity 1550 Matter Stores 1333 Matter Capacity 1800 Sight Range 23 Robot Scan Range 20 Terrain Scan Range 20 Terrain Scan Density 1010 Jamming Range 16 Armor Coverage 2400 Resistance: KI 30 Resistance: TH 15 Resistance: EM 90 Weapon Cycling 20 Evasion (%) 50 Targeting Accuracy 8 Target Analysis 12 Armor Integrity Analysis 66 Recoil Reduction 4 Salvage Targeting 4 Offensive Hacking 20 Item Schematics ----------------- Hcp. Storage Unit | -10/Materials | Hacked Combat Drone Bay | -7/Data Miner | Free Exp. Flexi-carbon Leg | -7/Data Miner | Free Cmb. Gravmag System | -7/Data Miner | Free Mni. Smartbomb Launcher | -7/Data Miner | Free Kinetic Spear | -7/Data Miner | Free Adv. Armor Integrity Analyzer | -6/Factory | Hacked Launcher Loader | -5/Factory | Scanalyzed Robot Schematics ------------------ S-27 Virus | -7/Data Miner | Free G-50 Soldier | -7/Data Miner | Free L-41 Fighter | -7/Data Miner | Free X-72 Disruptor | -7/Data Miner | Free H-66 Slayer | -7/Data Miner | Free P-70 Sage | -7/Data Miner | Free I-36 Angel | -7/Data Miner | Free Fabricated ------------ Biometal Medium Treads | x2 | -6/Factory | Preloaded Biometal Medium Treads | x2 | -6/Factory | Preloaded Biometal Medium Treads | x2 | -6/Factory | Preloaded Adv. Armor Integrity Analyzer | x1 | -5/Factory Alien Tech Used ----------------- None Achievements -------------- None Challenges ------------ None Game ------ Seed IntegratedCooledKit Manual? 0 Play Time 03:52:45 Cumulative 282.6 hours Start 2021.01.11 @ 11:34:10 End 2021.01.11 @ 15:34:38 Sessions 1 Manual Loads 0 Difficulty Rogue Special Mode None Game No. 143 Rogue 143 Adventurer 0 Explorer 0 Win Type - Total 5 Types 1/3/0/0/0/0/1/0/0 Lore% 74 Gallery% 80 Achievement% 65 Wizard Run 0 Options --------- ASCII 1 Keyboard 1 Movement Vi Keybinds 0 Fullscreen 1 Font 16/Terminus Map View 75x55 Tactical HUD 1 Map Filters NONE Filters NONE Steam 1 RUN: ac07da24-4287-4506-8172-491804380ace